[Event "Titled Tuesday Blitz November 15 Late 2022"]
[White "Aguilar, Juan"]
[Black "Yurovskykh, Oleksandr"]
[WhiteFideId "3800091"]
[BlackFideId "14134020"]
[WhiteElo "2463"]
[BlackElo "2265"]
[Result "1-0"]
[Round "09"]
[TimeControl "180+1"]
[Date "2022.11.16"]
[WhiteClock "0:01:08"]
[BlackClock "0:00:05"]

1. d4 {[%clk 0:03:00]}  Nf6 {[%clk 0:02:55]} 2. c4 {[%clk 0:03:01]}  e6 {[%clk 0:02:55]} 3. Nf3 {[%clk 0:03:00]}  Bb4+ {[%clk 0:02:54]} 4. Nbd2 {[%clk 0:03:00]}  O-O {[%clk 0:02:43]} 5. a3 {[%clk 0:03:00]}  Be7 {[%clk 0:02:43]} 6. e4 {[%clk 0:02:58]}  d5 {[%clk 0:02:43]} 7. cxd5 {[%clk 0:02:56]}  exd5 {[%clk 0:02:43]} 8. e5 {[%clk 0:02:56]}  Ne4 {[%clk 0:02:43]} 9. Bd3 {[%clk 0:02:54]}  Nxd2 {[%clk 0:02:42]} 10. Bxd2 {[%clk 0:02:52]}  c5 {[%clk 0:02:31]} 11. h4 {[%clk 0:02:41]}  h6 {[%clk 0:02:24]} 12. Bb1 {[%clk 0:02:31]}  Nc6 {[%clk 0:01:41]} 13. h5 {[%clk 0:02:16]}  f5 {[%clk 0:01:32]} 14. exf6 {[%clk 0:02:15]}  Bxf6 {[%clk 0:01:32]} 15. Qc2 {[%clk 0:02:10]}  Re8+ {[%clk 0:01:30]} 16. Kf1 {[%clk 0:02:10]}  Nxd4 {[%clk 0:01:22]} 17. Qh7+ {[%clk 0:02:05]}  Kf8 {[%clk 0:01:22]} 18. Bg6 {[%clk 0:02:01]}  Be6 {[%clk 0:01:01]} 19. Bxe8 {[%clk 0:01:46]}  Qxe8 {[%clk 0:00:56]} 20. Nxd4 {[%clk 0:01:45]}  Bxd4 {[%clk 0:00:52]} 21. Re1 {[%clk 0:01:39]}  Qb5+ {[%clk 0:00:45]} 22. Kg1 {[%clk 0:01:38]}  Qxb2 {[%clk 0:00:29]} 23. Rxe6 {[%clk 0:01:21]}  Qxd2 {[%clk 0:00:25]} 24. Kh2 {[%clk 0:01:20]}  Qf4+ {[%clk 0:00:11]} 25. g3 {[%clk 0:01:19]}  Qf7 {[%clk 0:00:11]} 26. Rhe1 {[%clk 0:01:11]}  Qxh5+ {[%clk 0:00:04]} 27. Kg2 {[%clk 0:01:10]}  Qf7 {[%clk 0:00:04]} 28. Qh8+ {[%clk 0:01:07]}  Qg8 {[%clk 0:00:04]} 29. Re8+ {[%clk 0:01:07]}  Rxe8 {[%clk 0:00:05]} 30. Rxe8+ {[%clk 0:01:07]}  Kxe8 {[%clk 0:00:06]} 31. Qxg8+ {[%clk 0:01:08]}  Ke7 {[%clk 0:00:05]} 32. Qxd5 {[%clk 0:01:08]} 1-0


[Site "https://www.chess.com"]

[Event "Titled Tuesday Blitz November 15 Late 2022"]
[White "Arbunic Castro, Giovanna"]
[Black "Bogaudinov, Rushan"]
[WhiteFideId "3400549"]
[BlackFideId "4129288"]
[WhiteElo "1966"]
[BlackElo "1997"]
[Result "0-1"]
[Round "09"]
[TimeControl "180+1"]
[Date "2022.11.16"]
[WhiteClock "0:00:01"]
[BlackClock "0:00:14"]

1. e4 {[%clk 0:02:58]}  a6 {[%clk 0:02:50]} 2. d4 {[%clk 0:02:56]}  e6 {[%clk 0:02:49]} 3. c4 {[%clk 0:02:55]}  Nf6 {[%clk 0:02:49]} 4. Nc3 {[%clk 0:02:53]}  Bb4 {[%clk 0:02:48]} 5. e5 {[%clk 0:02:51]}  Ng8 {[%clk 0:02:48]} 6. Qg4 {[%clk 0:02:46]}  Kf8 {[%clk 0:02:47]} 7. Bd2 {[%clk 0:02:37]}  d6 {[%clk 0:02:41]} 8. O-O-O {[%clk 0:02:34]}  h5 {[%clk 0:02:36]} 9. Qg3 {[%clk 0:02:25]}  Nh6 {[%clk 0:02:36]} 10. Bd3 {[%clk 0:02:15]}  b5 {[%clk 0:02:33]} 11. a3 {[%clk 0:02:10]}  bxc4 {[%clk 0:02:29]} 12. Bxc4 {[%clk 0:02:02]}  Nf5 {[%clk 0:02:29]} 13. Qd3 {[%clk 0:01:48]}  Bxc3 {[%clk 0:02:25]} 14. Qxc3 {[%clk 0:01:43]}  Nd7 {[%clk 0:02:17]} 15. exd6 {[%clk 0:01:35]}  cxd6 {[%clk 0:02:17]} 16. d5 {[%clk 0:01:35]}  Nc5 {[%clk 0:02:09]} 17. dxe6 {[%clk 0:01:13]}  fxe6 {[%clk 0:02:10]} 18. f3 {[%clk 0:01:00]}  h4 {[%clk 0:01:56]} 19. Nh3 {[%clk 0:00:56]}  Qf6 {[%clk 0:01:56]} 20. Qb4 {[%clk 0:00:46]}  Bd7 {[%clk 0:01:47]} 21. Bf4 {[%clk 0:00:29]}  e5 {[%clk 0:01:39]} 22. Bg5 {[%clk 0:00:19]}  Qg6 {[%clk 0:01:39]} 23. f4 {[%clk 0:00:17]}  Rh5 {[%clk 0:01:27]} 24. fxe5 {[%clk 0:00:15]}  Rxg5 {[%clk 0:01:27]} 25. Nxg5 {[%clk 0:00:14]}  Qxg5+ {[%clk 0:01:27]} 26. Kb1 {[%clk 0:00:14]}  Ne3 {[%clk 0:01:06]} 27. exd6 {[%clk 0:00:12]}  Nxd1 {[%clk 0:01:03]} 28. Rxd1 {[%clk 0:00:12]}  Bf5+ {[%clk 0:00:49]} 29. Ka1 {[%clk 0:00:10]}  Rc8 {[%clk 0:00:42]} 30. Rf1 {[%clk 0:00:04]}  g6 {[%clk 0:00:41]} 31. d7 {[%clk 0:00:03]}  Rd8 {[%clk 0:00:19]} 32. Qxc5+ {[%clk 0:00:03]}  Qe7 {[%clk 0:00:19]} 33. Qd5 {[%clk 0:00:02]}  Qf6 {[%clk 0:00:15]} 34. Qg8+ {[%clk 0:00:01]}  Ke7 {[%clk 0:00:15]} 35. Re1+ {[%clk 0:00:01]}  Kd6 {[%clk 0:00:14]} 0-1


[Site "https://www.chess.com"]

[Event "Titled Tuesday Blitz November 15 Late 2022"]
[White "Ardila, Oscar Humberto"]
[Black "Thiel, Thomas"]
[WhiteFideId "4404742"]
[BlackFideId "4615964"]
[WhiteElo "1959"]
[BlackElo "2237"]
[Result "1-0"]
[Round "09"]
[TimeControl "180+1"]
[Date "2022.11.16"]
[WhiteClock "0:00:27"]
[BlackClock "0:00:14"]

1. d4 {[%clk 0:02:58]}  Nf6 {[%clk 0:02:58]} 2. c4 {[%clk 0:02:59]}  g6 {[%clk 0:02:56]} 3. Nc3 {[%clk 0:02:59]}  d5 {[%clk 0:02:55]} 4. e3 {[%clk 0:02:59]}  Bg7 {[%clk 0:02:53]} 5. Nf3 {[%clk 0:02:59]}  O-O {[%clk 0:02:52]} 6. Be2 {[%clk 0:02:59]}  dxc4 {[%clk 0:02:50]} 7. Bxc4 {[%clk 0:02:59]}  c5 {[%clk 0:02:50]} 8. O-O {[%clk 0:02:57]}  cxd4 {[%clk 0:02:46]} 9. Nxd4 {[%clk 0:02:57]}  Bd7 {[%clk 0:02:46]} 10. h3 {[%clk 0:02:55]}  Nc6 {[%clk 0:02:45]} 11. Nf3 {[%clk 0:02:48]}  a6 {[%clk 0:02:41]} 12. Qe2 {[%clk 0:02:48]}  Qc7 {[%clk 0:02:38]} 13. Rd1 {[%clk 0:02:46]}  Rac8 {[%clk 0:02:37]} 14. Bb3 {[%clk 0:02:45]}  Rfd8 {[%clk 0:02:35]} 15. Bd2 {[%clk 0:02:45]}  Na5 {[%clk 0:02:30]} 16. Bc2 {[%clk 0:02:39]}  Qc4 {[%clk 0:02:24]} 17. Bd3 {[%clk 0:02:34]}  Qc7 {[%clk 0:02:12]} 18. Rac1 {[%clk 0:02:31]}  Qb8 {[%clk 0:02:09]} 19. b3 {[%clk 0:02:26]}  Bc6 {[%clk 0:02:05]} 20. Nd4 {[%clk 0:02:25]}  Be8 {[%clk 0:02:00]} 21. Ne4 {[%clk 0:02:16]}  Nc6 {[%clk 0:01:55]} 22. Nxc6 {[%clk 0:02:12]}  Bxc6 {[%clk 0:01:55]} 23. Ng5 {[%clk 0:01:59]}  h6 {[%clk 0:01:51]} 24. Nf3 {[%clk 0:01:59]}  Bxf3 {[%clk 0:01:47]} 25. gxf3 {[%clk 0:01:47]}  Qe5 {[%clk 0:01:40]} 26. Rxc8 {[%clk 0:01:40]}  Rxc8 {[%clk 0:01:39]} 27. e4 {[%clk 0:01:24]}  Nh5 {[%clk 0:01:30]} 28. Qe3 {[%clk 0:01:18]}  g5 {[%clk 0:01:30]} 29. Bf1 {[%clk 0:01:13]}  Nf4 {[%clk 0:01:30]} 30. Qb6 {[%clk 0:01:08]}  Qc7 {[%clk 0:01:16]} 31. Qxc7 {[%clk 0:01:04]}  Rxc7 {[%clk 0:01:17]} 32. Be3 {[%clk 0:01:04]}  Be5 {[%clk 0:01:14]} 33. a4 {[%clk 0:01:02]}  Rc3 {[%clk 0:01:05]} 34. b4 {[%clk 0:01:01]}  Rb3 {[%clk 0:00:58]} 35. b5 {[%clk 0:01:01]}  axb5 {[%clk 0:00:57]} 36. axb5 {[%clk 0:01:01]}  Ne6 {[%clk 0:00:53]} 37. Rd7 {[%clk 0:00:58]}  Rb1 {[%clk 0:00:49]} 38. Rxe7 {[%clk 0:00:51]}  Kf8 {[%clk 0:00:34]} 39. Rxb7 {[%clk 0:00:50]}  Bd4 {[%clk 0:00:34]} 40. Bxd4 {[%clk 0:00:41]}  Nxd4 {[%clk 0:00:33]} 41. Kg2 {[%clk 0:00:41]}  Rb3 {[%clk 0:00:25]} 42. Bc4 {[%clk 0:00:41]}  Rc3 {[%clk 0:00:21]} 43. Bxf7 {[%clk 0:00:32]}  Nxf3 {[%clk 0:00:19]} 44. Bd5 {[%clk 0:00:28]}  Nh4+ {[%clk 0:00:19]} 45. Kf1 {[%clk 0:00:28]}  Rxh3 {[%clk 0:00:17]} 46. b6 {[%clk 0:00:28]}  Rh1+ {[%clk 0:00:14]} 47. Ke2 {[%clk 0:00:28]}  Rb1 {[%clk 0:00:14]} 48. Rb8+ {[%clk 0:00:26]}  Ke7 {[%clk 0:00:14]} 49. b7 {[%clk 0:00:27]} 1-0


[Site "https://www.chess.com"]

[Event "Titled Tuesday Blitz November 15 Late 2022"]
[White "Bashirli, Nail"]
[Black "Yoo, Christopher Woojin"]
[WhiteFideId "13406809"]
[BlackFideId "30909694"]
[WhiteElo "2318"]
[BlackElo "2463"]
[Result "0-1"]
[Round "09"]
[TimeControl "180+1"]
[Date "2022.11.15"]
[WhiteClock "0:01:24"]
[BlackClock "0:01:11"]

1. e4 {[%clk 0:02:58]}  c6 {[%clk 0:02:53]} 2. Nc3 {[%clk 0:02:59]}  d5 {[%clk 0:02:52]} 3. Nf3 {[%clk 0:03:00]}  Bg4 {[%clk 0:02:49]} 4. h3 {[%clk 0:03:00]}  Bh5 {[%clk 0:02:43]} 5. g4 {[%clk 0:02:59]}  Bg6 {[%clk 0:02:43]} 6. exd5 {[%clk 0:02:59]}  cxd5 {[%clk 0:02:38]} 7. Ne5 {[%clk 0:02:59]}  Nc6 {[%clk 0:02:36]} 8. Bb5 {[%clk 0:02:58]}  Rc8 {[%clk 0:02:36]} 9. d4 {[%clk 0:02:56]}  e6 {[%clk 0:02:36]} 10. h4 {[%clk 0:02:55]}  f6 {[%clk 0:02:35]} 11. Nxg6 {[%clk 0:02:55]}  hxg6 {[%clk 0:02:36]} 12. Be3 {[%clk 0:02:55]}  Bb4 {[%clk 0:02:35]} 13. Bd3 {[%clk 0:02:54]}  Nge7 {[%clk 0:02:34]} 14. h5 {[%clk 0:02:50]}  e5 {[%clk 0:02:29]} 15. a3 {[%clk 0:02:45]}  Ba5 {[%clk 0:02:27]} 16. Bb5 {[%clk 0:02:29]}  Bxc3+ {[%clk 0:02:21]} 17. bxc3 {[%clk 0:02:29]}  Qa5 {[%clk 0:02:21]} 18. a4 {[%clk 0:02:14]}  Qxc3+ {[%clk 0:02:19]} 19. Kf1 {[%clk 0:02:08]}  a6 {[%clk 0:02:13]} 20. Bd3 {[%clk 0:02:03]}  e4 {[%clk 0:02:09]} 21. Be2 {[%clk 0:02:02]}  Nd8 {[%clk 0:01:36]} 22. Rb1 {[%clk 0:01:57]}  Qxc2 {[%clk 0:01:32]} 23. Qe1 {[%clk 0:01:56]}  Qxa4 {[%clk 0:01:29]} 24. Rh3 {[%clk 0:01:52]}  Qd7 {[%clk 0:01:25]} 25. Kg2 {[%clk 0:01:51]}  Ne6 {[%clk 0:01:24]} 26. hxg6 {[%clk 0:01:46]}  Rxh3 {[%clk 0:01:21]} 27. Kxh3 {[%clk 0:01:46]}  Nxg6 {[%clk 0:01:21]} 28. Kh2 {[%clk 0:01:35]}  Qd6+ {[%clk 0:01:17]} 29. Kg1 {[%clk 0:01:35]}  b5 {[%clk 0:01:18]} 30. f3 {[%clk 0:01:25]}  Ngf4 {[%clk 0:01:14]} 31. Bf1 {[%clk 0:01:24]}  Ng5 {[%clk 0:01:11]} 0-1


[Site "https://www.chess.com"]

[Event "Titled Tuesday Blitz November 15 Late 2022"]
[White "Bazzano, Sebastian"]
[Black "Burke, Paul"]
[WhiteFideId "104566"]
[BlackFideId "2605767"]
[WhiteElo "2255"]
[BlackElo "1813"]
[Result "1-0"]
[Round "09"]
[TimeControl "180+1"]
[Date "2022.11.16"]
[WhiteClock "0:00:58"]
[BlackClock "0:00:48"]

1. d4 {[%clk 0:03:00]}  a6 {[%clk 0:02:58]} 2. e4 {[%clk 0:02:59]}  d6 {[%clk 0:02:59]} 3. Nc3 {[%clk 0:02:58]}  g6 {[%clk 0:02:59]} 4. Bf4 {[%clk 0:02:57]}  Bg7 {[%clk 0:02:58]} 5. Qd2 {[%clk 0:02:57]}  h6 {[%clk 0:02:56]} 6. O-O-O {[%clk 0:02:56]}  Nd7 {[%clk 0:02:56]} 7. Nf3 {[%clk 0:02:55]}  e6 {[%clk 0:02:56]} 8. Kb1 {[%clk 0:02:43]}  Ne7 {[%clk 0:02:56]} 9. h4 {[%clk 0:02:39]}  b6 {[%clk 0:02:55]} 10. a3 {[%clk 0:02:24]}  Bb7 {[%clk 0:02:55]} 11. Bd3 {[%clk 0:02:20]}  Qb8 {[%clk 0:02:54]} 12. Rhe1 {[%clk 0:02:13]}  Qa7 {[%clk 0:02:51]} 13. Bc4 {[%clk 0:02:04]}  O-O-O {[%clk 0:02:44]} 14. Ba2 {[%clk 0:01:51]}  Nf6 {[%clk 0:02:21]} 15. Qe2 {[%clk 0:01:47]}  d5 {[%clk 0:02:05]} 16. Ne5 {[%clk 0:01:43]}  Rhf8 {[%clk 0:02:00]} 17. f3 {[%clk 0:01:41]}  dxe4 {[%clk 0:01:38]} 18. fxe4 {[%clk 0:01:38]}  Nd7 {[%clk 0:01:26]} 19. Nf3 {[%clk 0:01:25]}  Nf6 {[%clk 0:01:22]} 20. Qe3 {[%clk 0:01:16]}  Ng4 {[%clk 0:01:12]} 21. Qe2 {[%clk 0:01:15]}  Nf6 {[%clk 0:01:09]} 22. Ne5 {[%clk 0:01:03]}  Nd7 {[%clk 0:01:06]} 23. Nxd7 {[%clk 0:01:02]}  Rxd7 {[%clk 0:01:05]} 24. Qe3 {[%clk 0:01:02]}  h5 {[%clk 0:00:55]} 25. Bh6 {[%clk 0:00:58]}  Bxh6 {[%clk 0:00:54]} 26. Qxh6 {[%clk 0:00:59]}  Qa8 {[%clk 0:00:48]} 27. Qxf8+ {[%clk 0:00:58]} 1-0


[Site "https://www.chess.com"]

[Event "Titled Tuesday Blitz November 15 Late 2022"]
[White "Buchenau, Frank"]
[Black "Aggelis, Nikolaos"]
[WhiteFideId "4604350"]
[BlackFideId "4213220"]
[WhiteElo "2157"]
[BlackElo "2189"]
[Result "0-1"]
[Round "09"]
[TimeControl "180+1"]
[Date "2022.11.16"]
[WhiteClock "0:00:39"]
[BlackClock "0:00:32"]

1. e4 {[%clk 0:02:58]}  c5 {[%clk 0:02:59]} 2. Nf3 {[%clk 0:02:57]}  Nc6 {[%clk 0:02:59]} 3. Bb5 {[%clk 0:02:57]}  g6 {[%clk 0:02:54]} 4. Bxc6 {[%clk 0:02:57]}  dxc6 {[%clk 0:02:51]} 5. d3 {[%clk 0:02:56]}  Bg7 {[%clk 0:02:49]} 6. O-O {[%clk 0:02:56]}  Nf6 {[%clk 0:02:37]} 7. a4 {[%clk 0:02:50]}  a5 {[%clk 0:02:34]} 8. Nbd2 {[%clk 0:02:48]}  Nd7 {[%clk 0:02:30]} 9. Nc4 {[%clk 0:02:47]}  b6 {[%clk 0:02:27]} 10. Re1 {[%clk 0:02:44]}  Ba6 {[%clk 0:02:12]} 11. e5 {[%clk 0:02:27]}  O-O {[%clk 0:02:00]} 12. Qe2 {[%clk 0:02:21]}  Bxc4 {[%clk 0:01:59]} 13. dxc4 {[%clk 0:02:21]}  e6 {[%clk 0:01:52]} 14. Bg5 {[%clk 0:02:20]}  Qc7 {[%clk 0:01:51]} 15. Qe3 {[%clk 0:02:18]}  Rae8 {[%clk 0:01:30]} 16. Rad1 {[%clk 0:02:15]}  Nxe5 {[%clk 0:01:19]} 17. Nxe5 {[%clk 0:02:09]}  f6 {[%clk 0:01:18]} 18. Bf4 {[%clk 0:01:55]}  fxe5 {[%clk 0:01:14]} 19. Bxe5 {[%clk 0:01:55]}  Bxe5 {[%clk 0:01:12]} 20. Qxe5 {[%clk 0:01:56]}  Qxe5 {[%clk 0:01:13]} 21. Rxe5 {[%clk 0:01:57]}  Rf4 {[%clk 0:01:04]} 22. b3 {[%clk 0:01:52]}  Rd4 {[%clk 0:01:03]} 23. Rxd4 {[%clk 0:01:45]}  cxd4 {[%clk 0:01:04]} 24. c5 {[%clk 0:01:36]}  b5 {[%clk 0:01:04]} 25. axb5 {[%clk 0:01:31]}  cxb5 {[%clk 0:01:03]} 26. c6 {[%clk 0:01:22]}  Rc8 {[%clk 0:01:01]} 27. Rxe6 {[%clk 0:01:21]}  Kf7 {[%clk 0:00:52]} 28. Rd6 {[%clk 0:01:20]}  Ke7 {[%clk 0:00:48]} 29. Rxd4 {[%clk 0:01:16]}  Rxc6 {[%clk 0:00:48]} 30. c4 {[%clk 0:01:12]}  bxc4 {[%clk 0:00:37]} 31. bxc4 {[%clk 0:01:13]}  Rd6 {[%clk 0:00:36]} 32. Re4+ {[%clk 0:01:10]}  Re6 {[%clk 0:00:34]} 33. f3 {[%clk 0:00:39]}  Rxe4 {[%clk 0:00:32]} 34. fxe4 {[%clk 0:00:40]}  a4 {[%clk 0:00:33]} 35. c5 {[%clk 0:00:39]}  a3 {[%clk 0:00:33]} 36. c6 {[%clk 0:00:39]}  a2 {[%clk 0:00:32]} 0-1


[Site "https://www.chess.com"]

[Event "Titled Tuesday Blitz November 15 Late 2022"]
[White "Castella Garcia, Fausto"]
[Black "Espinosa, Pedro"]
[WhiteFideId "3501922"]
[BlackFideId "30921066"]
[WhiteElo "2245"]
[BlackElo "2016"]
[Result "1-0"]
[Round "09"]
[TimeControl "180+1"]
[Date "2022.11.16"]
[WhiteClock "0:01:29"]
[BlackClock "0:00:20"]

1. e4 {[%clk 0:03:00]}  c5 {[%clk 0:03:00]} 2. Nf3 {[%clk 0:02:59]}  d6 {[%clk 0:03:00]} 3. d4 {[%clk 0:02:59]}  cxd4 {[%clk 0:03:01]} 4. Nxd4 {[%clk 0:03:00]}  Nf6 {[%clk 0:03:02]} 5. Nc3 {[%clk 0:03:00]}  Nc6 {[%clk 0:03:03]} 6. Bg5 {[%clk 0:03:01]}  e6 {[%clk 0:03:03]} 7. Qd2 {[%clk 0:03:01]}  a6 {[%clk 0:03:03]} 8. O-O-O {[%clk 0:03:00]}  Bd7 {[%clk 0:03:03]} 9. f4 {[%clk 0:02:58]}  Be7 {[%clk 0:03:03]} 10. Bxf6 {[%clk 0:02:56]}  Bxf6 {[%clk 0:03:03]} 11. Nf3 {[%clk 0:02:45]}  Be7 {[%clk 0:03:03]} 12. f5 {[%clk 0:02:44]}  exf5 {[%clk 0:03:02]} 13. exf5 {[%clk 0:02:41]}  Bxf5 {[%clk 0:03:03]} 14. Bd3 {[%clk 0:02:41]}  Bxd3 {[%clk 0:02:58]} 15. Qxd3 {[%clk 0:02:40]}  O-O {[%clk 0:02:55]} 16. Nd5 {[%clk 0:02:38]}  Bg5+ {[%clk 0:02:50]} 17. Kb1 {[%clk 0:02:35]}  Ne5 {[%clk 0:02:44]} 18. Nxe5 {[%clk 0:02:33]}  dxe5 {[%clk 0:02:44]} 19. h4 {[%clk 0:02:28]}  Bf6 {[%clk 0:02:29]} 20. g4 {[%clk 0:02:23]}  Re8 {[%clk 0:02:21]} 21. Qe4 {[%clk 0:02:16]}  Bxh4 {[%clk 0:01:48]} 22. g5 {[%clk 0:02:12]}  Qxg5 {[%clk 0:01:45]} 23. Rxh4 {[%clk 0:02:02]}  f5 {[%clk 0:01:27]} 24. Qc4 {[%clk 0:01:53]}  Kh8 {[%clk 0:01:13]} 25. Nc7 {[%clk 0:01:49]}  b5 {[%clk 0:00:59]} 26. Qf7 {[%clk 0:01:35]}  Qxh4 {[%clk 0:00:21]} 27. Nxe8 {[%clk 0:01:31]}  Qg4 {[%clk 0:00:20]} 28. Qf8# {[%clk 0:01:29]} 1-0


[Site "https://www.chess.com"]

[Event "Titled Tuesday Blitz November 15 Late 2022"]
[White "Chirilov, James A"]
[Black "Kirillov, Dmitry"]
[WhiteFideId "30976677"]
[BlackFideId "34180572"]
[WhiteElo "1790"]
[BlackElo "2095"]
[Result "0-1"]
[Round "09"]
[TimeControl "180+1"]
[Date "2022.11.16"]
[WhiteClock "0:00:12"]
[BlackClock "0:00:12"]

1. e4 {[%clk 0:03:00]}  c6 {[%clk 0:02:58]} 2. d4 {[%clk 0:02:57]}  d5 {[%clk 0:02:59]} 3. e5 {[%clk 0:02:58]}  c5 {[%clk 0:02:59]} 4. dxc5 {[%clk 0:02:58]}  Nc6 {[%clk 0:02:59]} 5. f4 {[%clk 0:02:57]}  Nh6 {[%clk 0:02:58]} 6. Nf3 {[%clk 0:02:43]}  Nf5 {[%clk 0:02:53]} 7. Bd3 {[%clk 0:02:42]}  e6 {[%clk 0:02:27]} 8. Bxf5 {[%clk 0:02:26]}  exf5 {[%clk 0:02:27]} 9. Be3 {[%clk 0:02:26]}  d4 {[%clk 0:02:28]} 10. Nxd4 {[%clk 0:02:24]}  Bxc5 {[%clk 0:02:23]} 11. c3 {[%clk 0:02:19]}  Qb6 {[%clk 0:02:22]} 12. Nd2 {[%clk 0:01:48]}  Qxb2 {[%clk 0:02:16]} 13. N2b3 {[%clk 0:01:32]}  Nxd4 {[%clk 0:02:06]} 14. Bxd4 {[%clk 0:01:18]}  Qxg2 {[%clk 0:01:52]} 15. Rg1 {[%clk 0:01:00]}  Qe4+ {[%clk 0:01:51]} 16. Qe2 {[%clk 0:01:00]}  Qxe2+ {[%clk 0:01:52]} 17. Kxe2 {[%clk 0:01:01]}  Bxd4 {[%clk 0:01:52]} 18. Nxd4 {[%clk 0:01:00]}  O-O {[%clk 0:01:51]} 19. Rab1 {[%clk 0:00:58]}  b6 {[%clk 0:01:49]} 20. h4 {[%clk 0:00:57]}  h5 {[%clk 0:01:45]} 21. Rg5 {[%clk 0:00:53]}  g6 {[%clk 0:01:45]} 22. Rbg1 {[%clk 0:00:50]}  Kh7 {[%clk 0:01:45]} 23. Ke3 {[%clk 0:00:41]}  Re8 {[%clk 0:01:44]} 24. c4 {[%clk 0:00:33]}  Bd7 {[%clk 0:01:41]} 25. Rc1 {[%clk 0:00:28]}  Rac8 {[%clk 0:01:41]} 26. a3 {[%clk 0:00:27]}  f6 {[%clk 0:01:40]} 27. Rgg1 {[%clk 0:00:18]}  fxe5 {[%clk 0:01:40]} 28. Nf3 {[%clk 0:00:19]}  exf4+ {[%clk 0:01:38]} 29. Kxf4 {[%clk 0:00:19]}  Re4+ {[%clk 0:01:39]} 30. Kg3 {[%clk 0:00:19]}  Rg4+ {[%clk 0:01:39]} 31. Kf2 {[%clk 0:00:19]}  Rgxc4 {[%clk 0:01:31]} 32. Rxc4 {[%clk 0:00:16]}  Rxc4 {[%clk 0:01:32]} 33. Rd1 {[%clk 0:00:15]}  Rc2+ {[%clk 0:01:20]} 34. Kg3 {[%clk 0:00:15]}  Bc6 {[%clk 0:01:05]} 35. Ng5+ {[%clk 0:00:14]}  Kh6 {[%clk 0:01:00]} 36. Rd8 {[%clk 0:00:10]}  Rg2+ {[%clk 0:00:56]} 37. Kh3 {[%clk 0:00:10]}  f4 {[%clk 0:00:34]} 38. Rd6 {[%clk 0:00:08]}  Rc2 {[%clk 0:00:30]} 39. Rd8 {[%clk 0:00:03]}  f3 {[%clk 0:00:20]} 40. Kg3 {[%clk 0:00:03]}  Rg2+ {[%clk 0:00:20]} 41. Kh3 {[%clk 0:00:03]}  Rxg5 {[%clk 0:00:17]} 42. hxg5+ {[%clk 0:00:03]}  Kxg5 {[%clk 0:00:18]} 43. Kg3 {[%clk 0:00:04]}  h4+ {[%clk 0:00:17]} 44. Kf2 {[%clk 0:00:05]}  a6 {[%clk 0:00:13]} 45. Rd6 {[%clk 0:00:05]}  Bb5 {[%clk 0:00:13]} 46. Rxb6 {[%clk 0:00:05]}  Be2 {[%clk 0:00:12]} 47. Rb4 {[%clk 0:00:04]}  Kh5 {[%clk 0:00:11]} 48. Rb8 {[%clk 0:00:03]}  g5 {[%clk 0:00:11]} 49. Kg1 {[%clk 0:00:02]}  Kg4 {[%clk 0:00:11]} 50. Rh8 {[%clk 0:00:02]}  Kg3 {[%clk 0:00:11]} 51. Rf8 {[%clk 0:00:03]}  g4 {[%clk 0:00:11]} 52. Kh1 {[%clk 0:00:02]}  f2 {[%clk 0:00:11]} 53. a4 {[%clk 0:00:01]}  f1=Q+ {[%clk 0:00:11]} 54. Rxf1 {[%clk 0:00:01]}  Bxf1 {[%clk 0:00:12]} 55. Kg1 {[%clk 0:00:02]}  h3 {[%clk 0:00:11]} 56. a5 {[%clk 0:00:03]}  h2+ {[%clk 0:00:09]} 57. Kxf1 {[%clk 0:00:04]}  h1=Q+ {[%clk 0:00:10]} 58. Ke2 {[%clk 0:00:04]}  Qd5 {[%clk 0:00:10]} 59. Ke3 {[%clk 0:00:05]}  Qe5+ {[%clk 0:00:10]} 60. Kd3 {[%clk 0:00:05]}  Kf3 {[%clk 0:00:11]} 61. Kc2 {[%clk 0:00:06]}  g3 {[%clk 0:00:11]} 62. Kb3 {[%clk 0:00:07]}  g2 {[%clk 0:00:12]} 63. Kc4 {[%clk 0:00:08]}  g1=Q {[%clk 0:00:13]} 64. Kb3 {[%clk 0:00:08]}  Qge3+ {[%clk 0:00:12]} 65. Ka2 {[%clk 0:00:09]}  Qxa5+ {[%clk 0:00:12]} 66. Kb1 {[%clk 0:00:10]}  Qee1+ {[%clk 0:00:12]} 67. Kc2 {[%clk 0:00:11]}  Qec3+ {[%clk 0:00:12]} 68. Kd1 {[%clk 0:00:12]}  Qaa1# {[%clk 0:00:12]} 0-1


[Site "https://www.chess.com"]

[Event "Titled Tuesday Blitz November 15 Late 2022"]
[White "Do Nascimento,Christian Almeida"]
[Black "Ali Abdullahi, Farah"]
[WhiteFideId "2143801"]
[BlackFideId "16100212"]
[WhiteElo "2079"]
[BlackElo "2341"]
[Result "1-0"]
[Round "09"]
[TimeControl "180+1"]
[Date "2022.11.16"]
[WhiteClock "0:00:37"]
[BlackClock "0:02:00"]

1. d4 {[%clk 0:03:00]}  d5 {[%clk 0:02:59]} 2. Bf4 {[%clk 0:02:58]}  Bf5 {[%clk 0:02:58]} 3. e3 {[%clk 0:02:58]}  e6 {[%clk 0:02:58]} 4. c4 {[%clk 0:02:55]}  c6 {[%clk 0:02:58]} 5. Qb3 {[%clk 0:02:50]}  b6 {[%clk 0:02:58]} 6. Nc3 {[%clk 0:02:50]}  Bd6 {[%clk 0:02:55]} 7. Bg3 {[%clk 0:02:47]}  Nf6 {[%clk 0:02:55]} 8. Nf3 {[%clk 0:02:44]}  h6 {[%clk 0:02:55]} 9. Be2 {[%clk 0:02:43]}  O-O {[%clk 0:02:55]} 10. O-O {[%clk 0:02:42]}  Bxg3 {[%clk 0:02:55]} 11. hxg3 {[%clk 0:02:42]}  Nbd7 {[%clk 0:02:56]} 12. Rac1 {[%clk 0:02:41]}  Re8 {[%clk 0:02:55]} 13. cxd5 {[%clk 0:02:41]}  cxd5 {[%clk 0:02:54]} 14. Bb5 {[%clk 0:02:39]}  a6 {[%clk 0:02:52]} 15. Bc6 {[%clk 0:02:39]}  Rb8 {[%clk 0:02:49]} 16. Ne5 {[%clk 0:02:37]}  Rf8 {[%clk 0:02:45]} 17. Bxd7 {[%clk 0:02:29]}  Nxd7 {[%clk 0:02:44]} 18. Nc6 {[%clk 0:02:29]}  Qg5 {[%clk 0:02:35]} 19. Nxb8 {[%clk 0:02:23]}  Rxb8 {[%clk 0:02:36]} 20. Qa4 {[%clk 0:02:13]}  Nf6 {[%clk 0:02:34]} 21. Rfe1 {[%clk 0:02:02]}  Ng4 {[%clk 0:02:30]} 22. f3 {[%clk 0:01:38]}  Nxe3 {[%clk 0:02:27]} 23. Kf2 {[%clk 0:01:23]}  Nc4 {[%clk 0:02:25]} 24. f4 {[%clk 0:01:07]}  Qf6 {[%clk 0:02:24]} 25. Ne2 {[%clk 0:00:59]}  Nxb2 {[%clk 0:02:23]} 26. Qxa6 {[%clk 0:00:53]}  Nd3+ {[%clk 0:02:22]} 27. Ke3 {[%clk 0:00:47]}  Nxe1 {[%clk 0:02:18]} 28. Rxe1 {[%clk 0:00:47]}  Qd8 {[%clk 0:02:05]} 29. Rc1 {[%clk 0:00:46]}  Ra8 {[%clk 0:02:04]} 30. Qb7 {[%clk 0:00:47]}  Rxa2 {[%clk 0:02:04]} 31. Rc8 {[%clk 0:00:46]}  Qxc8 {[%clk 0:02:00]} 32. Qxc8+ {[%clk 0:00:46]}  Kh7 {[%clk 0:02:01]} 33. Qf8 {[%clk 0:00:38]}  Ra3+ {[%clk 0:02:00]} 34. Qxa3 {[%clk 0:00:37]} 1-0


[Site "https://www.chess.com"]